bitfinex/quotes_ETHUSD_20241231
["timestamp","ask_amount","ask_price","bid_price","bid_amount"]
[1735658761472,0.3,3423.0,3422.9,3.67519]
[1735658761668,0.3,3423.0,3422.9,7.08775]
[1735658761967,0.3,3423.0,3422.9,11.36958779]
[1735658762363,3.04398858,3424.6,3423.8,2.92069]
[1735658762592,2.91988,3424.8,3423.9,0.7537]
[1735658763504,3.04398858,3424.9,3423.9,0.7537]
[1735658763709,2.9203,3424.4,3423.9,0.7537]
[1735658763908,0.7586,3425.5,3423.5,0.7537]
[1735658764118,3.0,3424.7,3423.8,0.7537]
[1735658764410,0.7586,3425.5,3424.1,0.7537]
[1735658764611,3.0,3425.2,3424.1,0.7537]
[1735658764774,2.80891788,3425.4,3424.1,0.7537]
[1735658764775,3.0,3424.5,3424.1,0.7537]
[1735658765785,3.0,3424.7,3424.1,0.7537]
[1735658766198,0.7586,3425.0,3424.1,0.7537]
[1735658766394,3.0,3424.8,3424.1,0.7537]
[1735658767391,3.0,3425.2,3424.1,0.7537]
[1735658767594,2.91956,3425.2,3424.1,3.67414]
[1735658767910,3.0,3425.2,3424.3,0.8106]
[1735658768510,0.7566,3425.4,3424.3,0.8106]
[1735658768690,2.91963,3425.1,3424.3,0.8106]
[1735658768891,0.7566,3425.4,3424.3,3.73087]
[1735658768892,3.0,3425.2,3424.3,3.73087]
[1735658769692,2.9193,3425.5,3424.5,2.92012]
[1735658769893,2.9193,3425.5,3424.6,0.370812]
[1735658770103,2.91914,3425.7,3424.7,0.788]
[1735658770704,3.64131788,3426.0,3424.7,0.788]
[1735658771009,2.91954,3425.2,3424.7,0.788]
[1735658772337,2.9194,3425.4,3424.7,0.788]
[1735658772534,2.91949,3425.3,3424.7,0.788]
[1735658773117,0.591919,3425.4,3424.7,0.788]
[1735658773318,3.0,3425.5,3424.7,0.788]
[1735658773656,2.91922,3425.6,3424.7,0.788]
[1735658773800,2.91906,3425.8,3424.8,0.788]
[1735658773997,0.8324,3426.0,3424.8,0.788]
[1735658774194,2.91913,3425.7,3424.8,0.788]
[1735658774436,2.91913,3425.7,3424.8,1.158792]
[1735658774658,3.64131788,3426.3,3424.9,0.788]
[1735658774935,3.64131788,3426.3,3424.8,0.370792]
[1735658774936,2.91861,3426.3,3425.3,0.788]
[1735658775105,3.0,3426.2,3425.3,3.70741]
[1735658775443,2.91844,3426.5,3425.4,3.57098279]
[1735658775645,3.0,3426.4,3425.5,0.788]
[1735658775936,0.8324,3426.9,3425.7,0.788]
[1735658776236,3.0,3426.9,3425.7,0.788]
[1735658776421,3.591804,3426.8,3425.7,0.788]
[1735658776603,2.91857,3426.4,3425.7,0.788]
[1735658778549,6.509974,3426.8,3425.7,0.788]
[1735658778844,3.0,3426.4,3425.7,0.788]
[1735658780719,3.591804,3426.8,3425.7,0.788]
[1735658780920,0.6509924,3426.7,3425.7,0.788]
[1735658781652,2.9186,3426.3,3425.7,0.788]
[1735658782560,2.91846,3426.5,3425.7,0.788]
[1735658782855,0.8324,3427.1,3425.7,0.788]
[1735658783065,4.15115761,3428.3,3426.2,0.7669]
[1735658783216,4.15115761,3428.3,3426.4,0.7669]
[1735658783412,0.8057,3428.3,3426.5,0.7669]
[1735658783660,2.91722,3428.0,3426.8,2.91811]
[1735658783953,2.91722,3428.0,3426.6,2.91834]
[1735658784159,2.91722,3428.0,3427.0,0.7669]
[1735658784457,2.91732,3427.8,3427.0,0.7669]
[1735658785594,0.8057,3428.3,3427.0,0.7669]
[1735658785759,2.91758,3427.5,3427.0,0.7669]
[1735658785958,2.91759,3427.5,3427.0,0.7669]
[1735658786159,3.0,3427.8,3427.0,0.7669]
[1735658787397,3.0,3428.2,3427.0,0.7669]
[1735658787599,2.91733,3427.8,3427.0,0.7669]
[1735658787968,2.91718,3428.0,3427.0,0.7669]
[1735658788177,3.591718,3427.9,3427.0,0.7669]
[1735658788697,2.91733,3427.8,3427.0,0.7669]
[1735658789275,0.591718,3427.9,3427.1,2.91787]
[1735658789605,0.8057,3428.3,3427.2,0.7669]
[1735658789801,2.91721,3428.0,3427.2,0.7669]
[1735658790003,2.91739,3427.8,3427.2,0.7669]
[1735658791021,2.9176,3427.5,3427.2,0.7669]
[1735658792300,2.91727,3427.9,3427.2,0.7669]
[1735658792301,2.91731,3427.9,3427.2,0.7669]
[1735658792501,0.591727,3427.8,3427.2,0.7669]
[1735658792928,0.8057,3428.3,3427.2,0.7669]
[1735658793086,2.9173,3427.9,3427.2,0.7669]
[1735658793714,2.91733,3427.8,3427.2,0.7669]
[1735658795858,3.0,3428.1,3427.2,0.7669]
[1735658796491,2.91723,3427.9,3427.2,0.7669]
[1735658796958,0.8057,3428.3,3427.2,0.7669]
[1735658797239,2.91696,3428.3,3427.3,2.91768]
[1735658797385,2.91921,3429.0,3428.1,0.7669]
[1735658797588,0.00291,3429.0,3428.1,0.7669]
[1735658797784,2.9165,3428.8,3428.1,0.7669]
[1735658798030,3.284951,3428.8,3428.1,0.7669]
[1735658798326,2.9165,3428.8,3428.1,0.7669]
[1735658798502,2.91925,3429.0,3428.1,0.7669]
[1735658798689,2.91639,3428.9,3428.1,0.7669]
[1735658799027,0.00291,3429.0,3428.1,0.7669]
[1735658799213,0.00291,3429.0,3428.2,2.91696]
[1735658799532,0.00291,3429.0,3428.3,4.020456]
[1735658800028,0.00291,3429.0,3428.3,1.103596]
[1735658800871,0.00291,3429.0,3428.3,4.020486]
[1735658801072,0.00291,3429.0,3428.3,1.103596]
[1735658802761,2.91922,3429.0,3428.3,1.103596]
[1735658803351,2.91922,3429.0,3428.3,0.8119]
[1735658803548,0.00291,3429.0,3428.3,0.8119]
[1735658805258,0.00291,3429.0,3428.3,3.72879]
[1735658805959,0.00291,3429.0,3428.4,0.8119]
[1735658806172,0.00291,3429.0,3428.9,3.72828]
[1735658806366,0.00291,3429.0,3428.9,4.65995059]
[1735658807079,0.00291,3429.0,3428.9,7.39717059]
[1735658807285,2.91558,3429.9,3429.0,2.79421293]
[1735658807781,0.1741533,3430.0,3428.9,4.65995059]
[1735658807782,2.91566,3429.8,3428.9,0.8119]
[1735658807983,2.91606,3429.3,3428.9,0.8119]
[1735658808185,2.91614,3429.2,3428.2,3.72887]
[1735658808383,3.0,3429.9,3428.4,2.79421293]
[1735658808549,2.91596,3429.4,3428.4,5.71100293]
[1735658808752,2.91615,3429.2,3428.4,2.79421293]
[1735658808950,3.0,3429.9,3428.5,0.36061129]
[1735658809188,2.91648,3428.8,3428.3,0.8119]
[1735658809674,0.7651,3429.3,3428.3,0.8119]
[1735658809860,2.91628,3429.1,3428.3,0.8119]
[1735658810060,2.91631,3429.0,3428.3,0.8119]
[1735658810388,3.0,3429.3,3428.7,2.79421293]
[1735658810558,3.0,3429.3,3428.8,1.09132129]
[1735658812157,2.91603,3429.4,3428.8,1.09132129]
[1735658812565,2.91583,3429.6,3428.8,1.09132129]
[1735658813352,2.9159,3429.5,3428.8,1.09132129]
[1735658813584,2.91608,3429.3,3428.8,1.09132129]
[1735658813792,2.91614,3429.2,3428.8,0.8119]
[1735658813991,2.91623,3429.1,3428.8,0.8119]
[1735658814195,2.91606,3429.3,3428.8,0.8119]
[1735658814361,2.91624,3429.1,3428.8,0.8119]
[1735658814890,2.91624,3429.1,3428.5,0.8037]
[1735658815091,2.91624,3429.1,3428.6,0.35979129]
[1735658815598,2.91612,3429.3,3428.6,0.35979129]
[1735658816396,0.1741533,3430.0,3429.1,2.79421293]
[1735658816593,0.7742,3429.9,3428.9,0.8037]
[1735658816755,3.7742,3429.9,3429.0,0.35979129]
[1735658816956,0.7742,3429.9,3429.0,0.35979129]
[1735658817320,2.91564,3429.8,3429.0,0.35979129]
[1735658818360,2.9157,3429.7,3429.0,0.35979129]
[1735658819078,3.0,3429.8,3429.0,0.35979129]
[1735658819267,0.1741533,3430.0,3429.1,0.68741442]
[1735658819600,2.91588,3429.5,3429.0,0.35979129]
[1735658819777,2.91594,3429.5,3428.9,0.8037]
[1735658820159,5.91562,3429.8,3428.9,0.8037]
[1735658820365,2.91589,3429.5,3428.9,0.8037]
[1735658820888,0.1741533,3430.0,3428.9,0.8037]
[1735658821093,2.91575,3429.7,3428.9,0.8037]
[1735658821290,2.91575,3429.7,3428.9,1.175724]
[1735658823311,2.91579,3429.6,3428.9,1.175724]
[1735658823508,2.91616,3429.2,3428.9,0.8037]
[1735658824009,0.7742,3429.6,3428.9,0.8037]
[1735658824179,2.916,3429.4,3428.9,0.8037]
[1735658824810,3.8638133,3430.0,3428.9,0.8037]
[1735658825013,2.91567,3429.8,3428.9,0.8037]
[1735658825310,0.1741533,3430.0,3429.2,0.8037]
[1735658825499,0.1741533,3430.0,3429.4,2.91594]
[1735658825683,0.1741533,3430.0,3429.5,0.8037]
[1735658826096,0.1741533,3430.0,3429.8,0.8037]
[1735658826300,0.1741533,3430.0,3429.9,8.54903129]
[1735658826498,0.1741533,3430.0,3429.9,8.66803129]
[1735658826913,0.1741533,3430.0,3429.9,7.23851129]
[1735658829594,3.68856,3431.3,3430.1,2.91533]
[1735658829595,2.91445,3431.2,3430.1,2.91533]
[1735658829789,2.91452,3431.1,3430.1,2.91533]
[1735658829993,2.91452,3431.1,3430.3,0.7605]
[1735658830301,0.7742,3431.3,3430.3,0.7605]
[1735658830698,3.58876493,3431.5,3430.3,0.7605]
[1735658830904,2.91451,3431.2,3430.3,0.7605]
[1735658832510,2.9143,3431.4,3430.4,3.67552]
[1735658832711,2.91371,3432.1,3431.1,0.7605]
[1735658833087,2.91352,3432.3,3431.3,2.9143]
[1735658833328,2.91352,3432.3,3431.4,0.7605]
[1735658833536,2.91351,3432.3,3431.4,0.7605]
[1735658835227,2.91332,3432.5,3431.4,0.7605]
[1735658835404,3.0,3432.5,3431.4,1.11597129]
[1735658835607,2.91357,3432.3,3431.4,1.11597129]
[1735658835789,2.91357,3432.3,3431.5,0.782]
[1735658835989,2.91367,3432.1,3431.5,0.782]
[1735658836216,0.7661,3432.6,3431.5,0.782]
[1735658836402,0.83,3433.0,3431.5,2.91416]
[1735658836603,3.0,3432.5,3431.7,0.782]
[1735658836808,3.0,3432.5,3431.6,0.57083729]
[1735658836809,2.91309,3432.8,3432.0,2.79421293]
[1735658837007,2.91309,3432.8,3432.1,0.782]
[1735658837929,2.91281,3433.1,3432.1,0.782]
[1735658838087,0.58243237,3433.2,3432.1,0.782]
[1735658838292,0.43807986,3433.1,3432.1,0.782]
[1735658838834,3.35088986,3433.1,3432.1,0.782]
[1735658839504,3.0,3432.9,3432.1,0.782]
[1735658839709,3.0,3432.9,3430.6,4.22209095]
[1735658839710,2.91366,3432.2,3431.5,0.782]
[1735658839931,2.91367,3432.1,3431.5,0.782]
[1735658840441,2.91354,3432.3,3431.6,0.35762129]
[1735658840819,2.91315,3432.7,3431.6,0.35762129]
[1735658841019,2.91333,3432.5,3431.6,0.35762129]
[1735658841334,2.91342,3432.4,3431.6,0.35762129]
[1735658841536,2.91365,3432.2,3431.6,0.35762129]
[1735658843636,2.91344,3432.4,3431.7,0.39338342]
[1735658843838,2.91321,3432.7,3431.8,0.7537]
[1735658844444,0.58715434,3433.1,3431.8,3.66759]
[1735658844634,2.91318,3432.7,3431.9,0.50372692]
[1735658844834,2.91318,3432.7,3432.0,0.36913233]
[1735658845348,2.91302,3432.9,3432.0,3.16334526]
[1735658846362,0.58715434,3433.1,3432.0,3.16334526]
[1735658846514,2.91306,3432.9,3432.0,3.16334526]
[1735658847024,3.58715434,3433.1,3432.0,0.36913233]
[1735658847255,2.91314,3432.8,3431.7,5.70817293]
[1735658847455,2.91314,3432.8,3431.8,2.9139]
[1735658847655,2.91314,3432.8,3431.9,0.7537]
[1735658847868,0.7993,3432.8,3431.9,0.7537]
[1735658848018,2.9135,3432.3,3431.9,0.7537]
[1735658848350,2.91368,3432.1,3431.0,2.91456]
[1735658848578,2.91368,3432.1,3431.1,0.7537]
[1735658848753,0.29135,3432.3,3431.1,0.7537]
[1735658848754,2.91401,3431.7,3431.1,0.7537]
[1735658848909,2.91387,3431.9,3431.1,0.7537]
[1735658849117,2.91377,3432.0,3431.1,1.10849129]
[1735658849344,2.91373,3432.1,3431.2,0.7537]
[1735658850731,2.91377,3432.0,3431.2,0.7537]
[1735658851044,2.91359,3432.2,3431.2,0.7537]
[1735658851231,0.7993,3433.0,3431.4,3.54791293]
[1735658851433,2.9135,3432.3,3431.5,0.7537]
[1735658851648,2.91367,3432.1,3431.5,0.7537]
[1735658852239,2.91392,3431.8,3431.5,0.7537]
[1735658852436,2.91377,3432.0,3431.5,0.7537]
[1735658852644,3.205147,3432.0,3431.5,0.7537]
[1735658852835,0.291377,3432.0,3431.5,0.7537]
[1735658853041,2.91419,3431.5,3430.8,0.7537]
[1735658853452,3.7993,3431.8,3430.8,0.7537]
[1735658853762,2.91461,3431.0,3430.1,0.7537]
[1735658853924,2.91481,3430.8,3430.1,0.7537]
[1735658854347,2.91487,3430.7,3430.1,0.7537]
[1735658854554,2.91494,3430.6,3430.1,0.7537]
[1735658854750,2.91511,3430.4,3430.1,0.7537]
[1735658854949,2.9152,3430.3,3429.7,0.7537]
[1735658856065,2.91484,3430.8,3429.7,0.7537]
[1735658856363,2.91512,3430.4,3429.7,0.7537]
[1735658856562,2.91484,3430.8,3429.7,0.7537]
[1735658856563,0.7993,3430.8,3429.7,0.7537]
[1735658856767,2.91547,3430.0,3429.7,0.7537]
[1735658857064,2.91533,3430.2,3429.7,0.7537]
[1735658857626,2.91553,3429.9,3429.2,0.7537]
[1735658857830,2.91564,3429.8,3429.2,0.7537]
[1735658858051,2.91573,3429.7,3429.2,0.7537]
[1735658859452,2.91579,3429.6,3428.6,0.8026]
[1735658859661,2.91579,3429.6,3428.7,0.65135229]
[1735658860175,2.91589,3429.5,3428.7,0.65135229]
[1735658860733,2.91596,3429.4,3428.6,0.8026]
[1735658861361,2.91567,3429.8,3428.6,0.8026]
[1735658861362,2.91587,3429.6,3428.6,0.8026]
[1735658861964,3.0,3429.8,3428.6,3.7192]
[1735658862148,2.91538,3430.1,3428.9,0.8026]
[1735658863065,2.91538,3430.1,3428.9,3.71897]
[1735658863257,2.91527,3430.3,3429.2,0.8026]
[1735658863462,2.91532,3430.2,3429.3,0.371881]
[1735658863655,2.91544,3430.1,3429.2,0.8026]
[1735658863862,1.37409025,3430.5,3429.2,0.8026]
[1735658864065,2.91561,3429.9,3429.2,0.8026]
[1735658865459,2.91577,3429.7,3429.2,0.8026]
[1735658865779,2.91578,3429.7,3429.2,0.8026]
[1735658866539,3.207358,3429.7,3429.2,0.8026]
[1735658866740,0.291578,3429.7,3429.2,0.8026]
[1735658866975,2.91581,3429.6,3429.2,0.8026]
[1735658867800,2.91581,3429.6,3428.4,3.68418]
[1735658868637,2.91597,3429.4,3428.4,0.7674]
[1735658868839,2.91594,3429.5,3428.5,0.35677686]
[1735658870578,2.91598,3429.4,3428.5,0.35677686]
[1735658871690,2.91608,3429.3,3428.5,0.35677686]
[1735658872250,2.86608,3429.3,3428.5,0.35677686]
[1735658873456,2.91589,3429.5,3428.6,0.8064]
[1735658873764,2.91596,3429.4,3428.7,0.40799569]
[1735658878310,2.91596,3429.4,3428.6,0.8064]
[1735658878681,2.91605,3429.3,3428.6,0.8064]
[1735658879616,0.8033,3429.8,3428.6,0.8064]
[1735658879617,2.91615,3429.2,3428.6,0.8064]
[1735658880322,2.91602,3429.4,3428.6,0.8064]
[1735658880617,2.91598,3429.4,3428.6,0.8064]
[1735658880986,0.8033,3429.8,3428.7,0.40799769]
[1735658881184,2.91603,3429.4,3428.7,0.40799769]
[1735658881385,3.0,3429.6,3428.7,0.40799769]
[1735658881643,2.91607,3429.3,3428.7,0.40799769]
[1735658884109,2.91616,3429.2,3428.7,0.40799769]
[1735658884507,2.91616,3429.2,3428.6,0.8064]
[1735658884910,2.91596,3429.4,3428.6,0.8064]
[1735658885123,2.91628,3429.1,3428.6,0.8064]
[1735658885329,2.91637,3429.0,3428.6,0.8064]
[1735658885491,2.91582,3429.6,3428.6,0.8064]
[1735658885492,2.91604,3429.3,3428.6,0.8064]
[1735658885699,3.499226,3429.3,3428.6,0.8064]
[1735658886031,2.91627,3429.1,3428.6,0.8064]
[1735658886800,2.91613,3429.2,3428.6,0.8064]
[1735658887001,2.91627,3429.1,3428.6,0.8064]
[1735658888234,2.91592,3429.5,3428.6,3.72301]
[1735658888437,2.91592,3429.5,3428.6,0.8064]
[1735658889501,1.01035738,3429.7,3428.6,0.8064]
[1735658889702,2.916,3429.4,3428.6,0.8064]
[1735658891050,0.8033,3429.8,3428.6,0.8064]
[1735658891401,3.59185021,3429.9,3428.6,0.8064]
[1735658891638,0.59185021,3429.9,3428.8,0.827]
[1735658891938,0.8149,3430.8,3429.7,3.74268]
[1735658892141,3.48858477,3431.0,3429.8,0.827]
[1735658892313,3.04398858,3431.4,3430.2,0.827]
[1735658892516,2.91454,3431.1,3430.2,0.827]
[1735658892838,2.91485,3430.7,3430.2,0.827]
[1735658893354,2.91494,3430.6,3430.2,0.827]
[1735658893862,2.91505,3430.5,3430.2,0.482263]
[1735658896120,2.91505,3430.5,3429.5,2.91587]
[1735658896277,2.91505,3430.5,3429.6,0.57087436]
[1735658896981,2.91516,3430.4,3429.7,0.827]
[1735658898043,2.91493,3430.7,3429.7,0.827]
[1735658898271,0.964448,3430.7,3429.7,0.827]
[1735658898482,0.8149,3430.9,3429.7,0.827]
[1735658898655,2.91506,3430.5,3429.7,0.827]
[1735658899266,3.0,3430.8,3429.7,0.827]
[1735658899444,2.91519,3430.4,3429.7,0.827]
[1735658899670,5.91477,3430.8,3429.7,0.827]
[1735658899870,2.91511,3430.4,3429.7,0.827]
[1735658900187,2.9152,3430.3,3429.7,0.827]
[1735658900347,2.91562,3429.8,3429.4,0.05768307]
[1735658900550,2.91613,3429.2,3429.1,0.37502643]
[1735658900772,7.23728358,3429.2,3429.1,0.37502643]
[1735658901086,2.9163,3429.0,3428.9,2.44418191]
[1735658901421,2.91672,3428.5,3428.1,4.27731834]
[1735658901549,5.70985359,3428.2,3428.1,1.36025834]
[1735658901758,3.73213,3427.9,3426.5,3.01125383]
[1735658902109,3.73213,3427.9,3427.8,1.05268229]
[1735658902110,7.51427334,3427.9,3427.8,1.05268229]
[1735658902264,5.91757,3427.5,3426.5,3.01125383]
[1735658902472,2.91739,3427.8,3426.5,3.01125383]
[1735658902660,0.8149,3428.3,3426.6,2.91832]
[1735658902857,2.91715,3428.1,3427.4,0.60630988]
[1735658903057,3.0,3428.1,3427.4,1.8048645]
[1735658903261,2.91714,3428.1,3426.3,6.26298334]
[1735658903449,0.8149,3428.3,3426.3,6.26298334]
[1735658903450,0.8149,3428.3,3426.6,0.77]
[1735658903658,2.91684,3428.4,3427.2,2.9178]
[1735658903857,1.21702638,3427.9,3427.1,0.77]
[1735658904287,2.91741,3427.7,3427.1,0.77]
[1735658904550,2.91802,3427.0,3426.0,0.77]
[1735658904886,3.34445334,3427.1,3426.0,0.77]
[1735658905090,3.34445334,3426.3,3425.3,0.77]
[1735658905489,0.8033,3425.7,3424.8,0.77]
[1735658905996,3.7218,3426.5,3424.9,2.91979]
[1735658906198,3.7218,3426.5,3424.8,0.77]
[1735658906199,0.8033,3426.5,3425.0,0.70342433]
[1735658906390,2.91868,3426.2,3425.0,0.70342433]
[1735658906834,1.21702638,3426.1,3425.6,0.77]
[1735658907011,1.21702638,3426.1,3425.7,0.368926]
[1735658907722,1.21702638,3427.2,3425.7,0.368926]
[1735658908093,3.0,3426.9,3425.7,0.368926]
[1735658908298,3.0,3427.0,3425.7,3.288026]
[1735658908903,3.0,3427.0,3425.8,2.919]
[1735658909101,2.91802,3427.0,3425.9,0.4057926]
[1735658909295,4.93789638,3427.6,3425.9,3.34445334]
[1735658909521,1.21702638,3427.6,3426.5,2.9184]
[1735658909733,1.21702638,3427.6,3426.4,0.77]
[1735658909919,1.21702638,3427.6,3426.6,2.91831]
[1735658910120,4.13427638,3427.9,3426.7,0.368831]
[1735658910345,4.13427638,3427.9,3426.7,3.287081]
[1735658910712,1.21702638,3427.9,3426.7,3.287081]
[1735658911035,1.21702638,3427.9,3426.7,0.368831]
[1735658911239,1.21702638,3427.9,3426.9,2.918]
[1735658911426,3.71981,3428.8,3427.6,0.77]
[1735658911608,0.8033,3428.8,3427.7,2.91739]
[1735658911812,1.21702638,3428.9,3427.6,0.77]
[1735658912323,4.21702638,3428.9,3427.8,2.91731]
[1735658912508,4.21702638,3428.9,3427.8,3.62048633]
[1735658913039,3.0,3428.9,3427.8,3.62048633]
[1735658913721,2.91631,3429.0,3427.8,3.62048633]
[1735658913927,0.8033,3429.2,3428.0,2.91714]
[1735658914128,3.71917,3429.6,3427.9,6.34445334]
[1735658914329,3.71917,3429.6,3428.4,2.91675]
[1735658914330,3.0,3429.6,3428.4,2.91675]
[1735658914505,1.21702638,3429.8,3428.0,4.76648697]
[1735658914707,2.91606,3429.3,3428.0,1.76648697]
[1735658914916,2.91639,3428.9,3428.0,0.77]
[1735658915127,2.91622,3429.1,3428.0,0.77]
[1735658915603,3.0,3429.3,3428.0,0.77]
[1735658915802,0.8033,3428.8,3427.2,0.77]
[1735658916404,2.9169,3428.3,3427.2,0.77]
[1735658916900,2.91701,3428.2,3427.2,0.77]
[1735658917186,2.91707,3428.1,3427.2,0.77]
[1735658917447,2.91672,3428.5,3427.4,2.91761]
[1735658917736,2.91681,3428.4,3427.4,0.368761]
[1735658918124,3.0,3428.2,3427.4,0.368761]
[1735658918324,3.71982,3428.8,3427.4,0.368761]
[1735658918325,3.0,3428.4,3427.4,0.368761]
[1735658918525,3.71982,3428.8,3427.2,0.77]
[1735658918526,0.8033,3428.8,3427.2,0.77]
[1735658918939,3.0,3428.3,3427.2,0.77]
[1735658919138,2.91715,3428.0,3427.2,0.77]
[1735658919762,2.91662,3428.7,3427.2,0.77]
[1735658920069,2.91663,3428.7,3427.2,0.77]
[1735658920234,3.0,3428.9,3427.4,2.91764]
[1735658920235,2.91666,3428.6,3427.4,2.91764]
[1735658920610,3.0,3428.4,3427.3,0.368793]
[1735658920836,3.8033,3428.8,3427.2,3.68782]
[1735658921034,2.91663,3428.7,3427.3,2.91766]
[1735658921233,2.91663,3428.7,3427.2,0.77]
[1735658921571,0.8033,3428.8,3427.3,2.91768]
[1735658921719,2.91677,3428.5,3427.3,2.91768]
[1735658921916,2.91677,3428.5,3427.2,0.7534]
[1735658921917,2.91688,3428.4,3427.2,1.33019597]
[1735658922140,2.9172,3428.0,3427.2,0.7534]
[1735658922417,2.91727,3427.9,3427.2,0.7534]
[1735658923619,2.91708,3428.1,3427.2,0.7534]
[1735658923958,5.91672,3428.6,3427.2,0.7534]
[1735658924279,2.91672,3428.6,3427.2,0.7534]
[1735658924489,2.91719,3428.0,3427.2,0.7534]
[1735658924626,0.783,3428.5,3427.2,0.7534]
[1735658924627,2.91724,3427.9,3427.2,0.7534]
[1735658924829,3.783,3428.5,3427.2,0.7534]
[1735658925055,2.91735,3427.8,3427.2,0.7534]
[1735658925489,2.91718,3428.0,3427.2,0.7534]
[1735658925960,2.91698,3428.2,3427.2,0.7534]
[1735658926169,3.783,3428.5,3427.2,0.7534]
[1735658926537,2.91727,3427.9,3427.2,0.7534]
[1735658927064,2.91707,3428.1,3427.2,0.7534]
[1735658927629,2.91685,3428.4,3427.2,0.7534]
[1735658927824,2.91714,3428.1,3427.2,0.7534]
[1735658928037,2.91691,3428.3,3427.2,3.67123]
[1735658928255,3.0,3428.2,3427.2,4.848353]
[1735658928865,3.783,3428.5,3427.2,0.7534]
[1735658929049,2.91716,3428.0,3427.2,0.7534]
[1735658929564,3.0,3428.1,3427.2,0.7534]
[1735658929963,2.91707,3428.1,3427.2,0.7534]
[1735658930168,2.9169,3428.3,3427.2,3.67118]
[1735658930371,2.9169,3428.3,3427.3,1.177118]
[1735658931049,2.91702,3428.2,3427.3,1.177118]
[1735658931263,2.91702,3428.2,3427.2,0.7534]
[1735658932196,2.9172,3428.0,3427.2,0.7534]
[1735658932994,2.91698,3428.3,3427.2,3.67121]
[1735658933196,2.91614,3429.2,3428.1,2.91703]
[1735658933505,2.91614,3429.2,3427.8,0.777]
[1735658933506,2.91615,3429.2,3428.3,0.777]
[1735658933977,4.21702638,3429.3,3428.3,0.777]
[1735658934300,4.21702638,3429.3,3426.7,2.91821]
[1735658934301,2.9165,3428.8,3427.7,0.777]
[1735658934460,5.91613,3429.2,3427.7,0.777]
[1735658934668,2.91663,3428.7,3427.7,0.777]
[1735658934959,2.91641,3428.9,3427.7,0.777]
[1735658936167,5.91605,3429.3,3427.9,2.91723]
[1735658936497,3.0,3429.0,3427.7,3.69436]
[1735658936700,2.9165,3428.8,3427.8,2.91732]
[1735658936891,2.91669,3428.6,3427.7,0.777]
[1735658937476,3.8273,3429.4,3427.7,0.777]
[1735658937806,0.7522,3428.9,3427.7,0.777]
[1735658938303,2.91688,3428.4,3427.7,0.777]
[1735658938682,3.0,3428.6,3427.7,0.777]
[1735658938891,2.91693,3428.3,3427.7,0.777]
[1735658939669,0.7522,3428.9,3427.7,0.777]
[1735658939880,2.91689,3428.3,3427.7,0.777]
[1735658940078,2.91703,3428.2,3427.7,0.777]
[1735658941163,2.91681,3428.5,3427.7,0.777]
[1735658941369,3.0,3428.8,3427.7,0.777]
[1735658941712,2.91689,3428.4,3427.7,0.777]
[1735658942068,2.9169,3428.3,3427.7,0.777]
[1735658942268,2.91647,3428.8,3427.7,0.777]
[1735658942471,2.91713,3428.1,3427.7,0.777]
[1735658943121,2.91715,3428.0,3427.4,0.7631]
[1735658943470,2.9173,3427.9,3427.4,0.7631]
[1735658944134,0.7522,3428.2,3427.4,0.7631]
[1735658944281,0.7022,3428.2,3427.4,0.7631]
[1735658944511,5.91672,3428.6,3427.4,0.7631]
[1735658944689,7.13374638,3428.6,3427.4,0.7631]
[1735658944987,2.917,3428.2,3427.4,0.7631]
[1735658945183,3.0,3428.4,3427.4,0.7631]
[1735658945387,2.91728,3427.9,3427.4,0.7631]
[1735658946225,2.91689,3428.3,3427.4,0.7631]
[1735658946226,3.0,3428.4,3427.4,0.7631]
[1735658946519,2.91737,3427.8,3427.4,0.7631]
[1735658946675,3.0,3428.4,3427.4,0.7631]
[1735658947011,4.13406638,3428.2,3427.4,0.7631]
[1735658947171,2.91751,3427.6,3427.1,0.7631]
[1735658947578,2.91747,3427.7,3427.0,8.1]
[1735658947793,2.91779,3427.3,3427.0,8.1]
[1735658948318,2.91757,3427.6,3427.0,8.1]
[1735658948487,3.0,3427.9,3427.0,8.1]
[1735658948688,2.91773,3427.4,3427.0,8.1]
[1735658948885,0.7659,3427.4,3427.0,8.1]
[1735658949113,2.91777,3427.3,3427.0,8.1]
[1735658949315,0.7659,3427.4,3427.0,8.1]
[1735658949316,2.91791,3427.1,3427.0,8.1]
[1735658949612,5.91791,3427.1,3427.0,8.1]
[1735658950151,10.02826334,3427.1,3427.0,8.1]
[1735658950424,11.24528972,3427.1,3427.0,8.1]
[1735658951317,7.90083638,3427.1,3427.0,8.1]
[1735658951477,7.13493638,3427.1,3427.0,8.1]
[1735658951980,10.71810176,3427.1,3427.0,8.1]
[1735658953112,5.91791,3427.1,3427.0,8.1]
[1735658954933,3.0,3427.1,3427.0,8.1]
[1735658956020,2.95,3427.1,3427.0,8.1]
[1735658956181,4.74064805,3427.3,3427.0,8.1]
[1735658956382,1.82287805,3427.3,3427.0,8.1]
[1735658956719,4.13365634,3427.2,3427.0,8.1]
[1735658957499,2.91791,3427.1,3427.0,8.1]
[1735658957703,4.13361634,3427.3,3427.0,8.1]
[1735658958521,2.91784,3427.2,3427.0,8.1]
[1735658959370,2.91791,3427.1,3427.0,8.1]
[1735658961717,1.21582634,3427.2,3427.0,8.1]
[1735658962518,4.13372634,3427.2,3427.0,8.1]